fUSD/lending_fUSD_20250420
["ID","MTS","AMOUNT","RATE_DAILY","PERIOD"]
[358460951,1745170251020,-151.0,0.00060999,120]
[358460952,1745170251030,-176.746721,0.00060999,120]
[358460953,1745170251040,-500.0,0.00060999,120]
[358460954,1745170251050,-500.0,0.00060999,120]
[358460955,1745170251060,-500.0,0.00060999,120]
[358460956,1745170251070,-500.0,0.00060999,120]
[358460957,1745170251079,-500.0,0.00060999,120]
[358460958,1745170251089,-500.0,0.00060999,120]
[358460959,1745170251098,-287.53468188,0.00060999,120]
[358460960,1745170251108,-500.0,0.00060999,8]
[358460961,1745170251117,-500.0,0.00060999,8]
[358460962,1745170251126,-500.0,0.00060999,8]
[358460963,1745170251135,-500.0,0.00060999,8]
[358460964,1745170251144,-500.0,0.00060999,120]
[358460965,1745170251154,-344.5,0.00060999,120]
[358460966,1745170251163,-500.0,0.00060999,120]
[358460967,1745170251173,-500.0,0.00060999,120]
[358460968,1745170251182,-415.09254747,0.00060999,120]
[358460969,1745170251192,-500.0,0.00060999,120]
[358460970,1745170251201,-500.0,0.00060999,120]
[358460971,1745170251210,-500.0,0.00060999,120]
[358460972,1745170251219,-500.0,0.00060999,120]
[358460973,1745170251228,-500.0,0.00060999,120]
[358460974,1745170251237,-197.23748575,0.00060999,120]
[358460975,1745170251245,-500.0,0.00060999,120]
[358460976,1745170251254,-500.0,0.00060999,120]
[358460977,1745170251263,-500.0,0.00060999,120]
[358460978,1745170251273,-500.0,0.00060999,120]
[358460979,1745170251281,-500.0,0.00060999,120]
[358460980,1745170251291,-500.0,0.00060999,120]
[358460981,1745170251299,-500.0,0.00060999,120]
[358460982,1745170251311,-500.0,0.00060999,120]
[358460983,1745170251322,-500.0,0.00060999,120]
[358460984,1745170251332,-500.0,0.00060999,120]
[358460985,1745170251342,-410.60834562,0.00060999,120]
[358460986,1745170251352,-698.43,0.00060999,120]
[358460987,1745170251362,-698.43,0.00060999,120]
[358460988,1745170251373,-698.43,0.00060999,120]
[358460989,1745170251383,-698.43,0.00060999,120]
[358460990,1745170251393,-455.84108373,0.00060999,120]
[358460991,1745170251405,-500.0,0.00060999,120]
[358460992,1745170251415,-500.0,0.00060999,120]
[358460993,1745170251425,-608.13557105,0.00060999,120]
[358460994,1745170251434,-151.0,0.00060999,120]
[358460995,1745170251444,-402.31657273,0.00060999,120]
[358460996,1745170251453,-6623.23,0.00060999,2]
[358460997,1745170251462,-151.0,0.00060999,120]
[358460998,1745170251471,-6623.23,0.00060999,2]
[358460999,1745170251488,-6623.23,0.00060999,2]
[358461000,1745170251500,-6623.23,0.00060999,2]
[358461001,1745170251510,-733.01,0.00060999,120]
[358461002,1745170251519,-733.01,0.00060999,120]
[358461003,1745170251530,-733.01,0.00060999,120]
[358461004,1745170251539,-733.01,0.00060999,120]
[358461005,1745170251549,-500.0,0.00060999,120]
[358461006,1745170251559,-500.0,0.00060999,120]
[358461007,1745170251571,-500.0,0.00060999,120]
[358461008,1745170251580,-500.0,0.00060999,120]
[358461009,1745170251590,-551.25,0.00060999,120]
[358461010,1745170251599,-551.25,0.00060999,120]
[358461011,1745170251610,-551.25,0.00060999,120]
[358461012,1745170251619,-551.25,0.00060999,120]
[358461013,1745170251629,-500.0,0.00060999,120]
[358461014,1745170251640,-500.0,0.00060999,120]
[358461015,1745170251650,-500.0,0.00060999,120]
[358461016,1745170251660,-500.0,0.00060999,120]
[358461017,1745170251669,-500.0,0.00060999,120]
[358461018,1745170251679,-500.0,0.00060999,120]
[358461019,1745170251689,-500.0,0.00060999,120]
[358461020,1745170251699,-500.0,0.00060999,120]
[358461021,1745170251709,-150.0,0.00060999,120]
[358461022,1745170251719,-500.0,0.00060999,2]
[358461023,1745170251728,-500.0,0.00060999,2]
[358461024,1745170251738,-500.0,0.00060999,2]
[358461025,1745170251747,-500.0,0.00060999,2]
[358461026,1745170251756,-788697.57994515,0.00061,120]
[358461027,1745170251959,-550.0,0.00047617,2]
[358461029,1745170863212,151.0,0.00044113,7]
[358461030,1745170864565,-234.25687706,0.00047516,2]
[358461031,1745170864591,-250.0,0.00047566,2]
[358461032,1745170864618,-300.0,0.00047616,5]
[358461033,1745170864643,-300.0,0.00047616,5]
[358461034,1745170864669,-403.079,0.00047617,2]
[358461035,1745170864694,-1320.527,0.00047617,2]
[358461036,1745170864719,-1509.036,0.00047617,2]
[358461037,1745170864744,-580.721,0.00047617,2]
[358461038,1745170864768,-4291.647,0.00047617,2]
[358461039,1745170864795,-576.0,0.00047617,2]
[358461040,1745170864820,-250.0,0.00047741,2]
[358461041,1745170864851,-258.03,0.000481,45]
[358461042,1745170864882,-258.03,0.000481,45]
[358461043,1745170864912,-258.03,0.000481,45]
[358461044,1745170864943,-258.03,0.000481,45]
[358461045,1745170864973,-258.03,0.000481,45]
[358461046,1745170865003,-258.03,0.000481,45]
[358461047,1745170865034,-258.03,0.000481,45]
[358461048,1745170865064,-258.03,0.000481,45]
[358461049,1745170865095,-258.03,0.000481,45]
[358461050,1745170865125,-258.03,0.000481,45]
[358461051,1745170865156,-258.03,0.000481,45]
[358461052,1745170865187,-258.03,0.000481,45]
[358461053,1745170865214,-150.0,0.000485,2]
[358461054,1745170865240,-10454.42173528,0.00048689,2]
[358461055,1745170865265,-5000.0,0.000499,120]
[358461056,1745170875070,163.769999,0.000228,30]
[358461057,1745170879468,233.17,0.000481,45]
[358461058,1745170879531,233.17,0.000481,45]
[358461059,1745170879646,233.17,0.000481,45]
[358461060,1745170879723,233.17,0.000481,45]
[358461061,1745170879768,233.17,0.000481,45]
[358461062,1745170879829,233.17,0.000481,45]
[358461063,1745170880090,233.17,0.000481,45]
[358461064,1745170880129,233.17,0.000481,45]
[358461065,1745170880167,233.17,0.000481,45]
[358461066,1745170880288,233.17,0.000481,45]
[358461067,1745170880487,233.17,0.000481,45]
[358461068,1745170880596,233.17,0.000481,45]
[358461071,1745170888898,279.76,0.000487,2]
[358461073,1745171207202,-186.62466754,0.000515,120]
[358461074,1745171208613,176.61,0.00046143,2]
[358461075,1745171235142,-231.24924275,0.000515,120]
[358461076,1745171262176,400.0,0.0005,2]
[358461086,1745171359054,1000.0,0.0005,2]
[358461087,1745171360083,-5142.0,0.000507,120]
[358461088,1745171360107,-300.0,0.00051099,15]
[358461089,1745171360130,-6215.40784817,0.000511,30]
[358461094,1745171431582,-1189.43007749,0.000511,30]
[358461095,1745171431633,-2808.74837263,0.000511,30]
[358461096,1745171431642,-250.0,0.00051684,2]
[358461097,1745171431652,-500.0,0.00053424,30]
[358461098,1745171431662,-300.0,0.00053599,10]
[358461099,1745171431672,-233.17,0.000536,54]
[358461100,1745171431681,-233.17,0.000536,54]
[358461101,1745171431691,-233.17,0.000536,54]
[358461102,1745171431701,-233.17,0.000536,54]
[358461103,1745171431710,-233.17,0.000536,54]
[358461104,1745171431720,-233.17,0.000536,54]
[358461105,1745171431729,-233.17,0.000536,54]
[358461106,1745171431739,-233.17,0.000536,54]
[358461107,1745171431748,-233.17,0.000536,54]
[358461108,1745171431758,-233.17,0.000536,54]
[358461109,1745171431767,-233.17,0.000536,54]
[358461110,1745171431776,-233.17,0.000536,54]
[358461111,1745171431785,-233.17,0.000536,54]
[358461113,1745171431795,-110.04162737,0.000536,54]
[358461114,1745171431806,-123.12837263,0.000536,54]
[358461115,1745171431819,-233.17,0.000536,54]
[358461116,1745171431829,-197.25162737,0.000536,54]
[358461117,1745171431841,-35.91837263,0.000536,54]
[358461119,1745171431851,-233.17,0.000536,54]
[358461121,1745171431860,-233.17,0.000536,54]
[358461123,1745171431869,-233.17,0.000536,54]
[358461125,1745171431879,-233.17,0.000536,54]
[358461127,1745171431888,-233.17,0.000536,54]
[358461129,1745171431898,-191.26000622,0.000536,54]
[358461286,1745171437848,-41.90999378,0.000536,54]
[358461287,1745171437858,-233.17,0.000536,54]
[358461288,1745171437869,-233.17,0.000536,54]
[358461289,1745171437878,-220.43,0.000536,120]
[358461290,1745171437888,-642.0,0.000539,120]
[358461291,1745171437897,-315.26000622,0.00053972,32]
[358461292,1745171437955,-184.73999378,0.00053972,32]
[358461293,1745171437965,-300.0,0.00054,120]
[358461294,1745171437975,-1264.03927081,0.00055637,2]
[358461295,1745171437984,-948.01,0.00055791,2]
[358461296,1745171437993,-234.17,0.00055791,2]
[358461297,1745171438002,-250.0,0.0005621,2]
[358461298,1745171438015,-250.0,0.0005621,2]
[358461299,1745171438027,-539.47,0.00056727,30]
[358461300,1745171438037,-600.0,0.00057,30]
[358461301,1745171438047,-1000.0,0.00057125,120]
[358461302,1745171438058,-200.05,0.0005725,120]
[358461303,1745171438070,-4855.8983882,0.00057369,2]
[358461304,1745171438078,-157.95,0.00057528,120]
[358461305,1745171438088,-341.937,0.00057585,112]
[358461306,1745171438098,-9279.35,0.00057637,2]
[358461307,1745171438108,-2392.3,0.00057684,2]
[358461309,1745171438117,-169.56,0.00057699,120]
[358461311,1745171438127,-150.0,0.00057734,7]
[358461313,1745171438136,-163.33,0.00057816,2]
[358461314,1745171438145,-2131.39,0.00057837,30]
[358461316,1745171438154,-1000.0,0.00057907,120]
[358461318,1745171438164,-948.01,0.00058055,2]
[358461320,1745171438173,-500.0,0.00058133,120]
[358461321,1745171438183,-457.42,0.00058191,120]
[358461322,1745171438193,-500.0,0.00058506,120]
[358461323,1745171438203,-2000.0,0.000586,90]
[358461324,1745171438212,-500.0,0.00058757,120]
[358461325,1745171438222,-500.0,0.00058873,120]
[358461326,1745171438233,-166.66,0.00058939,2]
[358461327,1745171438244,-1000.0,0.00059,120]
[358461328,1745171438257,-239.0,0.00059,120]
[358461329,1745171438266,-239.0,0.00059041,120]
[358461330,1745171438275,-300.0,0.00059139,120]
[358461331,1745171438284,-808.53227146,0.0005919,2]
[358461332,1745171438295,-233.17,0.000592,60]
[358461333,1745171438306,-233.17,0.000592,60]
[358461334,1745171438316,-233.17,0.000592,60]
[358461335,1745171438326,-233.17,0.000592,60]
[358461336,1745171438335,-233.17,0.000592,60]
[358461337,1745171438345,-233.17,0.000592,60]
[358461338,1745171438355,-233.17,0.000592,60]
[358461339,1745171438366,-233.17,0.000592,60]
[358461340,1745171438376,-233.17,0.000592,60]
[358461341,1745171438386,-233.17,0.000592,60]
[358461342,1745171438396,-233.17,0.000592,60]
[358461343,1745171438405,-233.17,0.000592,60]
[358461344,1745171438415,-233.17,0.000592,60]
[358461345,1745171438424,-233.17,0.000592,60]
[358461346,1745171438434,-233.17,0.000592,60]
[358461347,1745171438443,-233.17,0.000592,60]
[358461348,1745171438453,-233.17,0.000592,60]
[358461349,1745171438462,-233.17,0.000592,60]
[358461350,1745171438472,-233.17,0.000592,60]
[358461351,1745171438481,-233.17,0.000592,60]
[358461352,1745171438490,-233.17,0.000592,60]
[358461353,1745171438500,-233.17,0.000592,60]
[358461354,1745171438510,-233.17,0.000592,60]
[358461355,1745171438520,-233.17,0.000592,60]
[358461356,1745171438529,-15254.6737,0.00059352,2]
[358461357,1745171438539,-12463.4126,0.00059352,2]
[358461358,1745171438548,-2287.0857,0.00059352,2]
[358461359,1745171438558,-150.999999,0.00059388,15]
[358461360,1745171438567,-165.44450441,0.00059388,7]
[358461361,1745171438577,-150.0,0.00059423,120]
[358461362,1745171438587,-1000.0,0.00059451,120]
[358461363,1745171438596,-500.87213229,0.00059587,15]
[358461364,1745171438605,-546.17538498,0.00059712,120]
[358461365,1745171438615,-263.81988604,0.00059851,120]
[358461366,1745171438624,-4412.9143,0.00059889,2]
[358461367,1745171438633,-506.73518608,0.0005989,80]
[358461368,1745171438643,-902.62409615,0.000599,15]
[358461369,1745171438652,-892.0561237,0.000599,31]
[358461370,1745171438661,-277.18063589,0.000599,28]
[358461371,1745171438671,-614.97956599,0.00059918,15]
[358461372,1745171438680,-1013.50743276,0.00059978,120]
[358461373,1745171438690,-500.0,0.00059978,120]
[358461374,1745171438699,-1652.82566053,0.0005998,120]
[358461375,1745171438708,-2932.29318992,0.0005998,5]
[358461376,1745171438718,-500.0,0.00059989,3]
[358461377,1745171438728,-500.0,0.00059989,3]
[358461378,1745171438737,-500.0,0.00059989,120]
[358461379,1745171438748,-500.77204004,0.00059989,120]
[358461380,1745171438757,-500.0,0.00059989,120]
[358461381,1745171438766,-500.0,0.00059989,120]
[358461382,1745171438776,-500.0,0.00059989,120]
[358461383,1745171438785,-500.0,0.00059989,120]
[358461384,1745171438794,-510.43285995,0.00059989,120]
[358461385,1745171438803,-500.0,0.00059989,120]
[358461386,1745171438813,-500.0,0.00059989,120]
[358461387,1745171438822,-8796.87956976,0.0005999,5]
[358461388,1745171439002,-150.99,0.0005999,120]
[358461389,1745171439013,-150.99,0.0005999,120]
[358461390,1745171439022,-150.99,0.0005999,120]
[358461391,1745171439032,-150.99,0.0005999,120]
[358461392,1745171439041,-227.11121194,0.00059999,120]
[358461393,1745171439051,-388.02150301,0.00059999,120]
[358461394,1745171439060,-500.0,0.00059999,120]
[358461395,1745171439069,-500.0,0.00059999,120]
[358461396,1745171439078,-500.0,0.00059999,120]
[358461397,1745171439088,-500.0,0.00059999,120]
[358461398,1745171439097,-500.0,0.00059999,120]
[358461399,1745171439107,-500.0,0.00059999,120]
[358461400,1745171439116,-187.53970464,0.00059999,120]
[358461401,1745171439125,-500.0,0.00059999,120]
[358461402,1745171439134,-500.0,0.00059999,120]
[358461403,1745171439144,-1082.76,0.00059999,120]
[358461404,1745171439153,-1102.0,0.0006,120]
[358461405,1745171439163,-184113.79591856,0.0006,120]
[358461406,1745171439176,-5895.73728062,0.0006,120]
[358461416,1745171439731,-341.19936997,0.000589,120]
[358461417,1745171439940,-158.80063003,0.000589,120]
[358461418,1745171439950,-5736.44496731,0.0006,120]
[358461444,1745171443782,-66657.64910273,0.0006,120]
[358461445,1745171443792,-25186.3396482,0.0006,120]
[358461446,1745171444715,-20.7360742,0.0006,120]
[358461447,1745171445631,-16858.69999998,0.0006,120]
[358461449,1745171448503,162.441,0.00049416,2]
[358461450,1745171488826,153.02,0.000481,45]
[358461451,1745171488876,153.02,0.000481,45]
[358461452,1745171488942,153.02,0.000481,45]
[358461453,1745171489004,153.02,0.000481,45]
[358461454,1745171489061,153.02,0.000481,45]
[358461455,1745171489117,153.02,0.000481,45]
[358461456,1745171489182,153.02,0.000481,45]
[358461472,1745171718435,450.0,0.00017,2]
[358461480,1745172081601,935.99024725,0.0005,2]
[358461481,1745172096742,152.27,0.000481,45]
[358461482,1745172096786,152.27,0.000481,45]
[358461483,1745172097081,152.27,0.000481,45]
[358461484,1745172097119,152.27,0.000481,45]
[358461485,1745172097155,152.27,0.000481,45]
[358461486,1745172097189,152.27,0.000481,45]
[358461487,1745172097228,152.27,0.000481,45]
[358461488,1745172097274,152.27,0.000481,45]
[358461489,1745172097309,152.27,0.000481,45]
[358461490,1745172097345,152.27,0.000481,45]
[358461491,1745172097380,152.27,0.000481,45]
[358461492,1745172146399,500.0,0.00049831,30]
[358461493,1745172149964,500.0,0.00049893,30]
[358461494,1745172238009,239.0,0.00048,90]
[358461495,1745172238329,239.0,0.00048356,90]
[358461496,1745172364656,176.61,0.00044914,2]
[358461497,1745172430136,-292.27744404,0.00050431,60]
[358461498,1745172451463,500.0,0.00049136,30]
[358461499,1745172552079,-1358.0,0.000502,120]
[358461500,1745172552100,-253.89794094,0.00050315,60]
[358461501,1745172552120,-250.0,0.00050459,2]
[358461502,1745172552140,-239.0,0.00050486,120]
[358461503,1745172552160,-500.0,0.00052,120]
[358461504,1745172602999,250.0,0.00050351,2]
[358461515,1745172631674,-150.27032,0.00047953,120]
[358461516,1745172631684,-250.0,0.00052748,2]
[358461517,1745172631693,-250.0,0.00052748,2]
[358461518,1745172631703,-242.0,0.00053011,120]
[358461519,1745172631712,-300.0,0.00053599,10]
[358461520,1745172631722,-600.0,0.00053599,10]
[358461521,1745172631731,-159.8,0.000536,120]
[358461522,1745172631741,-152.27,0.000536,54]
[358461523,1745172631751,-152.27,0.000536,54]
[358461524,1745172631761,-152.27,0.000536,54]
[358461525,1745172631770,-34.931403,0.000536,54]
[358461526,1745172631781,-117.338597,0.000536,54]
[358461527,1745172631791,-152.27,0.000536,54]
[358461528,1745172631800,-152.27,0.000536,54]
[358461529,1745172631809,-152.27,0.000536,54]
[358461530,1745172631819,-152.27,0.000536,54]
[358461531,1745172631828,-152.27,0.000536,54]
[358461532,1745172631837,-152.27,0.000536,54]
[358461533,1745172631847,-152.27,0.000536,54]
[358461534,1745172631856,-152.27,0.000536,54]
[358461535,1745172631865,-152.27,0.000536,54]
[358461536,1745172631873,-152.27,0.000536,54]
[358461537,1745172631882,-152.27,0.000536,54]
[358461538,1745172631891,-152.27,0.000536,54]
[358461539,1745172631900,-152.27,0.000536,54]
[358461540,1745172631909,-152.27,0.000536,54]
[358461541,1745172631919,-152.27,0.000536,54]
[358461554,1745172632113,-152.27,0.000536,54]
[358461555,1745172632122,-152.27,0.000536,54]
[358461558,1745172632131,-152.27,0.000536,54]
[358461560,1745172632141,-500.0,0.00054,120]
[358461562,1745172632150,-500.0,0.00054221,60]
[358461564,1745172632159,-940.55,0.00054225,2]
[358461566,1745172632169,-500.0,0.00054792,60]
[358461568,1745172632178,-500.0,0.00055,120]
[358461569,1745172632187,-582.13760719,0.00055217,2]
[358461571,1745172632196,-1652.82566053,0.00055709,120]
[358461573,1745172632205,-150.0,0.0005584,120]
[358461575,1745172632214,-169.57,0.00056063,120]
[358461577,1745172632223,-163.33,0.0005609,2]
[358461579,1745172632232,-167.521696,0.0005612,2]
[358461581,1745172632241,-2131.39,0.00056298,30]
[358461582,1745172632251,-1627.27,0.00056368,2]
[358461584,1745172632260,-1000.0,0.00056391,120]
[358461586,1745172632269,-9080.76,0.00056391,2]
[358461588,1745172632278,-940.55,0.00056489,2]
[358461590,1745172632288,-239.0,0.00056545,120]
[358461592,1745172632297,-150.0,0.00056735,7]
[358461593,1745172632306,-562.1537278,0.00057,120]
[358461595,1745172632316,-2000.0,0.000573,90]
[358461597,1745172632325,-273.549,0.000573,111]
[358461599,1745172632334,-1000.0,0.00057534,120]
[358461601,1745172632343,-157.95,0.00057539,120]
[358461603,1745172632354,-1000.0,0.000578,90]
[358461604,1745172632365,-2569.49045362,0.00058062,2]
[358461606,1745172632374,-68583.75325786,0.00058072,2]
[358461621,1745172632727,-18798.13590372,0.00058072,2]
[358461622,1745172632739,-229.0876961,0.0005814,30]
[358461624,1745172632751,-40.6423039,0.0005814,30]
[358461626,1745172632761,-448.21345261,0.00058466,2]
[358461643,1745172632914,-415.0,0.00058466,2]
[358461645,1745172632925,-697.0,0.00058466,2]
[358461648,1745172632936,-456.40958204,0.00058466,2]
[358461758,1745172637947,-108.98696535,0.00058466,2]
[358461759,1745172637956,-542.01376816,0.00058564,120]
[358461760,1745172637967,-500.0,0.00058624,120]
[358461761,1745172637976,-940.55,0.00058753,2]
[358461762,1745172637986,-500.0,0.00059,120]
[358461763,1745172637995,-381.18,0.00059184,120]
[358461764,1745172638004,-152.27,0.000592,60]
[358461765,1745172638013,-152.27,0.000592,60]
[358461766,1745172638022,-152.27,0.000592,60]
[358461767,1745172638032,-152.27,0.000592,60]
[358461768,1745172638043,-152.27,0.000592,60]
[358461769,1745172638052,-152.27,0.000592,60]
[358461770,1745172638061,-152.27,0.000592,60]
[358461771,1745172638070,-152.27,0.000592,60]
[358461772,1745172638079,-152.27,0.000592,60]
[358461773,1745172638089,-152.27,0.000592,60]
[358461774,1745172638098,-152.27,0.000592,60]
[358461775,1745172638107,-152.27,0.000592,60]
[358461776,1745172638116,-152.27,0.000592,60]
[358461777,1745172638126,-152.27,0.000592,60]
[358461778,1745172638135,-152.27,0.000592,60]
[358461779,1745172638145,-152.27,0.000592,60]
[358461781,1745172638154,-152.27,0.000592,60]
[358461783,1745172638163,-152.27,0.000592,60]
[358461785,1745172638172,-152.27,0.000592,60]
[358461787,1745172638181,-152.27,0.000592,60]
[358461789,1745172638190,-152.27,0.000592,60]
[358461791,1745172638199,-152.27,0.000592,60]
[358461792,1745172638208,-300.0,0.00059228,120]
[358461794,1745172638218,-152.57072744,0.00059733,120]
[358461795,1745172638227,-500.0,0.00059733,120]
[358461796,1745172638237,-150.0,0.00059733,120]
[358461797,1745172638247,-150.0,0.00059733,2]
[358461798,1745172638256,-500.0,0.00059733,120]
[358461799,1745172638266,-500.0,0.00059733,120]
[358461800,1745172638275,-150.0,0.00059733,2]
[358461801,1745172638284,-500.0,0.00059733,120]
[358461802,1745172638294,-2450.9755,0.00059733,2]
[358461803,1745172638303,-3492.0384,0.00059733,2]
[358461805,1745172638312,-15254.6737,0.00059733,2]
[358461807,1745172638322,-2287.0857,0.00059733,2]
[358461808,1745172638330,-1000.0,0.00059733,2]
[358461810,1745172638340,-992.7651,0.00059733,2]
[358461812,1745172638352,-560.9150083,0.00059742,80]
[358461813,1745172638366,-500.0,0.00059788,120]
[358461815,1745172638375,-206.20190545,0.00059788,120]
[358461817,1745172638384,-500.0,0.00059788,120]
[358461819,1745172638394,-500.0,0.00059788,120]
[358461820,1745172638405,-641.68994971,0.00059788,120]
[358461821,1745172638414,-500.0,0.00059832,120]
[358461822,1745172638423,-500.0,0.00059832,120]
[358461823,1745172638432,-150.0,0.00059832,120]
[358461824,1745172638441,-150.0,0.00059832,120]
[358461825,1745172638450,-150.0,0.00059832,120]
[358461826,1745172638463,-500.0,0.00059832,120]
[358461827,1745172638472,-500.0,0.00059832,120]
[358461828,1745172638480,-150.0,0.00059832,120]
[358461829,1745172638490,-150.0,0.00059832,120]
[358461830,1745172638499,-151.70442057,0.00059832,120]
[358461831,1745172638509,-150.0,0.00059832,120]
[358461832,1745172638518,-227.11121194,0.00059832,120]
[358461833,1745172638527,-500.0,0.00059832,120]
[358461834,1745172638536,-187.53970464,0.00059832,120]
[358461835,1745172638546,-388.02150301,0.00059832,120]
[358461836,1745172638555,-500.0,0.00059832,120]
[358461837,1745172638565,-500.0,0.00059832,120]
[358461838,1745172638576,-500.0,0.00059832,120]
[358461839,1745172638586,-500.0,0.00059832,120]
[358461840,1745172638596,-500.0,0.00059832,120]
[358461841,1745172638606,-55380.69889892,0.00059833,2]
[358461842,1745172638615,-500.0,0.00059843,120]
[358461843,1745172638624,-500.0,0.00059843,120]
[358461844,1745172638634,-500.0,0.00059843,120]
[358461845,1745172638643,-263.81988604,0.00059851,120]
[358461846,1745172638652,-1114.20680572,0.0005988,15]
[358461847,1745172638662,-277.18063589,0.0005988,28]
[358461848,1745172638671,-500.0,0.00059887,120]
[358461849,1745172638680,-500.0,0.00059887,120]
[358461850,1745172638690,-150.0,0.00059887,120]
[358461851,1745172638699,-150.0,0.00059887,120]
[358461852,1745172638709,-150.0,0.00059887,120]
[358461853,1745172638718,-500.0,0.00059887,120]
[358461854,1745172638727,-500.0,0.00059887,120]
[358461855,1745172638737,-150.0,0.00059887,120]
[358461856,1745172638746,-150.0,0.00059887,120]
[358461857,1745172638756,-150.0,0.00059887,120]
[358461858,1745172638766,-11008.4644,0.0005989,2]
[358461859,1745172638775,-16876.3269,0.0005989,2]
[358461860,1745172638784,-500.0,0.00059897,120]
[358461861,1745172638794,-507.64675778,0.00059897,120]
[358461862,1745172638803,-500.0,0.00059897,120]
[358461863,1745172638814,-500.0,0.00059942,120]
[358461864,1745172638825,-500.0,0.00059942,120]
[358461865,1745172638835,-150.0,0.00059942,120]
[358461866,1745172638844,-150.0,0.00059942,120]
[358461867,1745172638855,-500.0,0.00059942,120]
[358461868,1745172638864,-500.0,0.00059942,120]
[358461869,1745172638874,-150.0,0.00059942,120]
[358461870,1745172638883,-249.44330278,0.00059942,120]
[358461871,1745172638893,-218.79082503,0.00059942,120]
[358461872,1745172638903,-500.0,0.00059952,120]
[358461873,1745172638912,-500.0,0.00059952,120]
[358461874,1745172638921,-500.0,0.00059973,15]
[358461875,1745172638931,-287.48328094,0.00059973,2]
[358461876,1745172638941,-31641.6977679,0.0005998,4]
[358461877,1745172638951,-126566.791072,0.0005998,4]
[358461878,1745172638960,-325.81035444,0.0005998,5]
[358461879,1745172638969,-150.99,0.0005998,120]
[358461880,1745172638979,-5683.48448102,0.00059988,120]
[358461881,1745172638989,-150.0,0.00059989,120]
[358461882,1745172638999,-150.0,0.00059989,120]
[358461883,1745172639009,-150.0,0.00059989,120]
[358461884,1745172639018,-500.0,0.00059989,120]
[358461885,1745172639028,-150.0,0.00059989,120]
[358461886,1745172639037,-203.93193719,0.00059989,120]
[358461887,1745172639047,-243.72167779,0.00059989,58]
[358461888,1745172639055,-96712.61871797,0.0005999,2]
[358461889,1745172639126,-4646.70996334,0.0005999,2]
[358461890,1745172639137,-2383.49999997,0.0005999,2]
[358461894,1745172640095,-394.32139738,0.0005999,2]
[358461895,1745172640202,-1188.2845862,0.0005999,2]
[358461896,1745172640256,-22841.46759611,0.0005999,2]
[358461897,1745172640267,-39803.28569314,0.0005999,4]
[358461898,1745172640309,-2690.76973346,0.0005999,4]
[358461899,1745172640320,-1401.6,0.0005999,4]
[358461900,1745172640369,-641.75608065,0.0005999,4]